[Event "14th SRB-ch Women 2020"]
[Site "Vrnjacka Banja"]
[Date "2020.12.07"]
[Round "1.1"]
[White "Drljevic, Ljilja"]
[Black "Velikic, Adela"]
[Result "1-0"]
[ECO "B45"]
[WhiteElo "2174"]
[BlackElo "2278"]
[Annotator "RC"]
[PlyCount "59"]
[EventDate "2020.12.07"]
[EventType "tourn"]
[EventCountry "SRB"]
[SourceTitle "playchess.com"]
[Source "ChessBase"]
[SourceQuality "1"]
[TimeControl "40/5400+30:1800+30"]

1. e4 {[%emt 0:00:00]} c5 {[%emt 0:00:00]} 2. Nc3 {[%emt 0:00:00]} e6 {[%emt 0:00:00]} 3. Nf3 {[%emt 0:03:04]} Nc6 {[%emt 0:02:12]} 4. d4 {[%emt 0:00:32]} cxd4 {[%emt 0:00:07]} 5. Nxd4 {[%emt 0:00:03]} Nf6 {[%emt 0:00:32]} 6. Be3 {[%emt 0:40:10]} Bb4 {[%emt 0:07:47]} 7. Bd3 {[%emt 0:04:36]} d5 {[%emt 0:20:58]} 8. exd5 {[%emt 0:14:34]} Nxd5 {[%emt 0:02:20]} 9. Nxc6 {[%emt 0:02:10]} bxc6 {[%emt 0:00:36]} 10. Qg4 {[%emt 0:05:57]} O-O {[%emt 0:24:19]} 11. O-O-O {[%emt 0:07:57]} f5 {[%emt 0:17:50]} 12. Qc4 {[%emt 0:01:45]} Bxc3 {[%emt 0:04:44]} 13. bxc3 {[%emt 0:00:22]} Nxe3 {[%emt 0:01:06]} 14. fxe3 {[%emt 0:00:11]} Qg5 {[%emt 0:05:32]} 15. Qc5 {[%emt 0:09:53]} Rb8 {[%emt 0:07:19]} 16. Bc4 {[%emt 0:01:38]} Rb6 {[%emt 0:01:24]} 17. Rd2 {[%emt 0:01:18]} Qf6 {[%emt 0:00:55]} 18. g3 {[%emt 0:01:47]} h6 {[%emt 0:00:28]} 19. Rhd1 {[%emt 0:00:44]} Kh7 {[%emt 0:00:24]} 20. Bb3 {[%emt 0:00:37]} Re8 {[%emt 0:00:40]} 21. Rd6 {[%emt 0:00:35]} Qg5 {[%emt 0:00:26]} 22. R1d2 {[%emt 0:01:40]} Bb7 {[%emt 0:00:46]} 23. Rxe6 {[%emt 0:00:44]} Rb5 {[%emt 0:00:31]} 24. Qd6 {[%emt 0:00:25]} Rc8 {[%emt 0:00:30]} 25. Re7 {[%emt 0:01:06]} c5 {[%emt 0:00:21]} 26. Bc4 {[%emt 0:00:39]} Rb6 {[%emt 0:00:31]} 27. Qe5 {[%emt 0:00:21]} Bc6 {[%emt 0:00:26]} 28. h4 {[%emt 0:00:36]} Qg4 {[%emt 0:00:44]} 29. Be2 {[%emt 0:00:26]} Qg6 {[%emt 0:00:28]} 30. Bh5 {[%emt 0:00:21]} 1-0

[Event "14th SRB-ch Women 2020"]
[Site "Vrnjacka Banja"]
[Date "2020.12.07"]
[Round "1.2"]
[White "Benderac, Ana"]
[Black "Chelushkina, Irina"]
[Result "1/2-1/2"]
[ECO "D36"]
[WhiteElo "2202"]
[BlackElo "2224"]
[Annotator "RC"]
[PlyCount "27"]
[EventDate "2020.12.07"]
[EventType "tourn"]
[EventCountry "SRB"]
[SourceTitle "playchess.com"]
[Source "ChessBase"]
[SourceQuality "1"]
[TimeControl "40/5400+30:1800+30"]

1. d4 {[%emt 0:00:00]} Nf6 {[%emt 0:00:00]} 2. c4 {[%emt 0:00:00]} e6 {[%emt 0:00:00]} 3. Nc3 {[%emt 0:00:00]} d5 {[%emt 0:00:00]} 4. cxd5 {[%emt 0:00:00]} exd5 {[%emt 0:00:00]} 5. Nf3 {[%emt 0:00:03]} c6 {[%emt 0:00:00]} 6. Bg5 {[%emt 0:00:09]} Be7 {[%emt 0:00:04]} 7. e3 {[%emt 0:00:08]} Nbd7 {[%emt 0:00:08]} 8. Bd3 {[%emt 0:00:17]} Nf8 {[%emt 0:00:12]} 9. O-O {[%emt 0:00:10]} Ne6 {[%emt 0:00:04]} 10. Bh4 {[%emt 0:00:28]} O-O {[%emt 0:00:37]} 11. Qc2 {[%emt 0:00:24]} h6 {[%emt 0:00:10]} 12. a3 {[%emt 0:03:18]} Nd7 {[%emt 0:04:00]} 13. Bxe7 {[%emt 0:00:33]} Qxe7 {[%emt 0:00:05]} 14. b4 {[%emt 0:02:15]} 1/2-1/2

[Event "14th SRB-ch Women 2020"]
[Site "Vrnjacka Banja"]
[Date "2020.12.07"]
[Round "1.3"]
[White "Prudnikova, Svetlana"]
[Black "Eric, Jovana"]
[Result "1/2-1/2"]
[ECO "A17"]
[WhiteElo "2181"]
[BlackElo "2278"]
[Annotator "RC"]
[PlyCount "104"]
[EventDate "2020.12.07"]
[EventType "tourn"]
[EventCountry "SRB"]
[SourceTitle "playchess.com"]
[Source "ChessBase"]
[SourceQuality "1"]
[TimeControl "40/5400+30:1800+30"]

1. Nf3 {[%emt 0:00:00]} Nf6 {[%emt 0:00:00]} 2. c4 {[%emt 0:00:00]} e6 {[%emt 0:00:00]} 3. Nc3 {[%emt 0:00:29]} Bb4 {[%emt 0:00:58]} 4. g3 {[%emt 0:01:34]} b6 {[%emt 0:00:59]} 5. Bg2 {[%emt 0:00:05]} Bb7 {[%emt 0:00:04]} 6. Qc2 {[%emt 0:04:34]} O-O {[%emt 0:02:33]} 7. a3 {[%emt 0:00:58]} Be7 {[%emt 0:06:22]} 8. d4 {[%emt 0:05:17]} d5 {[%emt 0:01:42]} 9. cxd5 {[%emt 0:00:51]} exd5 {[%emt 0:00:06]} 10. O-O {[%emt 0:01:37]} a6 {[%emt 0:01:56]} 11. Ne5 {[%emt 0:09:25]} Nbd7 {[%emt 0:06:20]} 12. Rd1 {[%emt 0:03:34]} Bd6 {[%emt 0:03:13]} 13. Bg5 {[%emt 0:05:53]} Be7 {[%emt 0:05:42]} 14. Rac1 {[%emt 0:13:57]} h6 {[%emt 0:04:36]} 15. Bxf6 {[%emt 0:14:55]} Nxf6 {[%emt 0:00:41]} 16. Na4 {[%emt 0:03:47]} Bd6 {[%emt 0:03:15]} 17. Nc4 {[%emt 0:01:12]} Ne8 {[%emt 0:29:28]} 18. Ne3 {[%emt 0:07:06]} c6 {[%emt 0:05:27]} 19. Nf5 {[%emt 0:00:27]} Bc7 {[%emt 0:00:27]} 20. e4 {[%emt 0:01:20]} Qf6 {[%emt 0:06:18]} 21. Ne3 {[%emt 0:05:22]} Rd8 {[%emt 0:02:56]} 22. e5 {[%emt 0:03:42]} Qe6 {[%emt 0:00:37]} 23. Qb3 {[%emt 0:00:21]} Rb8 {[%emt 0:02:57]} 24. f4 {[%emt 0:00:58]} h5 {[%emt 0:02:53]} 25. f5 {[%emt 0:02:19]} Qh6 {[%emt 0:00:04]} 26. Rf1 {[%emt 0:04:10]} c5 {[%emt 0:04:45]} 27. Nxd5 {[%emt 0:02:53]} Bxd5 {[%emt 0:00:11]} 28. Qxd5 {[%emt 0:02:03]} Qe3+ {[%emt 0:05:40]} 29. Kh1 {[%emt 0:00:01]} Rd8 {[%emt 0:00:06]} 30. Rce1 {[%emt 0:02:10]} Qd2 {[%emt 0:02:39]} 31. Rd1 {[%emt 0:01:06]} Rxd5 {[%emt 0:01:23]} 32. Rxd2 {[%emt 0:00:05]} Rxd4 {[%emt 0:00:04]} 33. Rxd4 {[%emt 0:00:14]} cxd4 {[%emt 0:00:04]} 34. b4 {[%emt 0:01:20]} g6 {[%emt 0:01:27]} 35. fxg6 {[%emt 0:02:19]} fxg6 {[%emt 0:00:05]} 36. Bd5+ {[%emt 0:00:02]} Kg7 {[%emt 0:00:13]} 37. Rxf8 {[%emt 0:00:39]} Kxf8 {[%emt 0:00:06]} 38. Kg2 {[%emt 0:00:47]} Ke7 {[%emt 0:00:23]} 39. Kf3 {[%emt 0:00:11]} Bxe5 {[%emt 0:01:04]} 40. Nxb6 {[%emt 0:00:14]} Nc7 {[%emt 0:00:59]} 41. Ke4 {[%emt 0:31:31]} Bf6 {[%emt 0:03:24]} 42. Bc4 {[%emt 0:00:00]} Kd6 {[%emt 0:11:52]} 43. Na4 {[%emt 0:00:00]} Kc6 {[%emt 0:06:46]} 44. Nc5 {[%emt 0:00:00]} Nb5 {[%emt 0:01:24]} 45. Nxa6 {[%emt 0:00:00]} Nxa3 {[%emt 0:00:42]} 46. Bd3 {[%emt 0:00:00]} g5 {[%emt 0:05:21]} 47. Nc5 {[%emt 0:00:00]} Nb5 {[%emt 0:00:30]} 48. Ne6 {[%emt 0:00:58]} Nd6+ {[%emt 0:00:30]} 49. Kf3 {[%emt 0:00:20]} Kd5 {[%emt 0:01:05]} 50. Nc7+ {[%emt 0:00:19]} Kc6 {[%emt 0:00:50]} 51. Ne6 {[%emt 0:00:07]} Kd5 {[%emt 0:00:09]} 52. Nc7+ {[%emt 0:00:12]} Kc6 {[%emt 0:04:44]} 1/2-1/2

[Event "14th SRB-ch Women 2020"]
[Site "Vrnjacka Banja"]
[Date "2020.12.07"]
[Round "1.4"]
[White "Srdanovic, Jovana"]
[Black "Injac, Teodora"]
[Result "1/2-1/2"]
[ECO "D38"]
[WhiteElo "2149"]
[BlackElo "2290"]
[Annotator "RC"]
[PlyCount "54"]
[EventDate "2020.12.07"]
[EventType "tourn"]
[EventCountry "SRB"]
[SourceTitle "playchess.com"]
[Source "ChessBase"]
[SourceQuality "1"]
[TimeControl "40/5400+30:1800+30"]

1. d4 {[%emt 0:00:00]} Nf6 {[%emt 0:00:00]} 2. Nf3 {[%emt 0:00:00]} d5 {[%emt 0:00:09]} 3. c4 {[%emt 0:00:00]} e6 {[%emt 0:00:05]} 4. Nc3 {[%emt 0:00:04]} Bb4 {[%emt 0:00:19]} 5. cxd5 {[%emt 0:04:09]} exd5 {[%emt 0:00:08]} 6. Bg5 {[%emt 0:00:18]} h6 {[%emt 0:01:53]} 7. Bxf6 {[%emt 0:01:23]} Qxf6 {[%emt 0:00:06]} 8. Qa4+ {[%emt 0:00:48]} Nc6 {[%emt 0:00:05]} 9. e3 {[%emt 0:01:04]} O-O {[%emt 0:00:21]} 10. a3 {[%emt 0:09:31]} Bxc3+ {[%emt 0:02:46]} 11. bxc3 {[%emt 0:00:05]} Bg4 {[%emt 0:27:24]} 12. Be2 {[%emt 0:07:00]} Ne7 {[%emt 0:09:05]} 13. h3 {[%emt 0:06:57]} Bf5 {[%emt 0:09:12]} 14. O-O {[%emt 0:06:27]} c6 {[%emt 0:04:58]} 15. Qb3 {[%emt 0:12:58]} b5 {[%emt 0:09:18]} 16. a4 {[%emt 0:00:24]} a6 {[%emt 0:00:25]} 17. Ra3 {[%emt 0:01:55]} Ng6 {[%emt 0:02:54]} 18. Rfa1 {[%emt 0:02:50]} Rae8 {[%emt 0:00:48]} 19. Qd1 {[%emt 0:03:31]} Re6 {[%emt 0:10:08]} 20. axb5 {[%emt 0:02:00]} axb5 {[%emt 0:04:05]} 21. Ra8 {[%emt 0:06:09]} Ree8 {[%emt 0:07:25]} 22. Rxe8 {[%emt 0:04:47]} Rxe8 {[%emt 0:00:01]} 23. Bf1 {[%emt 0:01:26]} Be4 {[%emt 0:01:05]} 24. Nd2 {[%emt 0:00:16]} Nh4 {[%emt 0:02:19]} 25. Nxe4 {[%emt 0:01:29]} dxe4 {[%emt 0:00:29]} 26. Ra6 {[%emt 0:02:40]} Re6 {[%emt 0:02:18]} 27. Qh5 {[%emt 0:02:00]} Nf5 {[%emt 0:03:01]} 1/2-1/2

[Event "14th SRB-ch Women 2020"]
[Site "Vrnjacka Banja"]
[Date "2020.12.07"]
[Round "1.5"]
[White "Rapport, Jovana"]
[Black "Gajcin, Marina"]
[Result "1-0"]
[ECO "E60"]
[WhiteElo "2308"]
[BlackElo "2239"]
[Annotator "RC"]
[PlyCount "111"]
[EventDate "2020.12.07"]
[EventType "tourn"]
[EventCountry "SRB"]
[SourceTitle "playchess.com"]
[Source "ChessBase"]
[SourceQuality "1"]
[TimeControl "40/5400+30:1800+30"]

1. d4 {[%emt 1:30:30]} Nf6 {[%emt 1:30:30]} 2. c4 {[%emt 0:00:30]} g6 {[%emt 0:00:30]} 3. Nd2 {[%emt 0:00:30]} d5 {[%emt 0:00:30]} 4. cxd5 {[%emt 0:00:30]} Qxd5 {[%emt 0:00:30]} 5. Ngf3 {[%emt 0:00:30]} Bg7 {[%emt 0:00:30]} 6. e3 {[%emt 0:00:30]} O-O {[%emt 0:00:30]} 7. b4 {[%emt 0:00:30]} a5 {[%emt 0:00:30]} 8. Bc4 {[%emt 0:00:30]} Qd8 {[%emt 0:00:30]} 9. bxa5 {[%emt 0:00:30]} Rxa5 {[%emt 0:00:30]} 10. Nb3 {[%emt 0:00:30]} Ra7 {[%emt 0:00:30]} 11. O-O {[%emt 0:00:30]} Nc6 {[%emt 0:00:30]} 12. Bb2 {[%emt 0:00:30]} Nd5 {[%emt 0:00:30]} 13. e4 {[%emt 0:00:30]} Nb6 {[%emt 0:00:30]} 14. Bb5 {[%emt 0:00:30]} Na4 {[%emt 0:00:30]} 15. Bxa4 {[%emt 0:00:30]} Rxa4 {[%emt 0:00:30]} 16. h3 {[%emt 0:00:30]} b6 {[%emt 0:00:30]} 17. a3 {[%emt 0:00:30]} Na5 {[%emt 0:00:30]} 18. Nxa5 {[%emt 0:00:30]} Rxa5 {[%emt 0:00:30]} 19. Qc2 {[%emt 0:00:30]} Bb7 {[%emt 0:00:30]} 20. Bc3 {[%emt 0:00:30]} Ra7 {[%emt 0:00:30]} 21. Rfe1 {[%emt 0:00:30]} Qd7 {[%emt 0:00:30]} 22. d5 {[%emt 0:00:30]} c5 {[%emt 0:00:30]} 23. Ne5 {[%emt 0:00:30]} Qa4 {[%emt 0:00:30]} 24. Qb2 {[%emt 0:00:30]} Bxe5 {[%emt 0:00:30]} 25. Bxe5 {[%emt 0:00:30]} b5 {[%emt 0:00:30]} 26. Bg7 {[%emt 0:00:30]} Rfa8 {[%emt 0:00:30]} 27. Bh6 {[%emt 0:00:30]} Qd4 {[%emt 0:00:30]} 28. Qxb5 {[%emt 0:00:30]} Ba6 {[%emt 0:00:30]} 29. Qb3 {[%emt 0:00:30]} Bc4 {[%emt 0:00:30]} 30. Qf3 {[%emt 0:00:30]} Qd3 {[%emt 0:00:30]} 31. Re3 {[%emt 0:00:30]} Qd4 {[%emt 0:00:30]} 32. Rc3 {[%emt 0:00:30]} Be2 {[%emt 0:00:30]} 33. Qe3 {[%emt 0:00:30]} Ra4 {[%emt 0:00:30]} 34. f3 {[%emt 0:00:30]} f6 {[%emt 0:00:30]} 35. Kf2 {[%emt 0:00:30]} Bb5 {[%emt 0:00:30]} 36. Rac1 {[%emt 0:00:30]} g5 {[%emt 0:00:30]} 37. h4 {[%emt 0:00:30]} gxh4 {[%emt 0:00:30]} 38. Rxc5 {[%emt 0:00:30]} Qb2+ {[%emt 0:00:30]} 39. R1c2 {[%emt 0:00:30]} Qb1 {[%emt 0:00:30]} 40. Rc1 {[%emt 0:00:30]} Qb2+ {[%emt 0:00:30]} 41. R1c2 {[%emt 0:30:30]} Qb1 {[%emt 0:30:30]} 42. Qc1 {[%emt 0:00:30]} Qxc1 {[%emt 0:00:30]} 43. Bxc1 {[%emt 0:00:30]} Bd7 {[%emt 0:00:30]} 44. Rc7 {[%emt 0:00:30]} R8a7 {[%emt 0:00:30]} 45. Be3 {[%emt 0:00:30]} Rxc7 {[%emt 0:00:30]} 46. Rxc7 {[%emt 0:00:30]} h3 {[%emt 0:00:30]} 47. gxh3 {[%emt 0:00:30]} Bxh3 {[%emt 0:00:30]} 48. Rxe7 {[%emt 0:00:30]} Rxa3 {[%emt 0:00:30]} 49. Bd4 {[%emt 0:00:30]} f5 {[%emt 0:00:30]} 50. Rg7+ {[%emt 0:00:30]} Kf8 {[%emt 0:00:30]} 51. Rxh7 {[%emt 0:00:30]} fxe4 {[%emt 0:00:30]} 52. Rxh3 {[%emt 0:00:30]} Rd3 {[%emt 0:00:30]} 53. Be3 {[%emt 0:00:30]} exf3 {[%emt 0:00:30]} 54. Rh5 {[%emt 0:00:30]} Ke7 {[%emt 0:00:30]} 55. Kxf3 {[%emt 0:00:30]} Kd6 {[%emt 0:00:30]} 56. Ke4 {[%emt 0:00:30]} 1-0

[Event "14th SRB-ch Women 2020"]
[Site "Vrnjacka Banja"]
[Date "2020.12.08"]
[Round "2.1"]
[White "Velikic, Adela"]
[Black "Gajcin, Marina"]
[Result "0-1"]
[ECO "A42"]
[WhiteElo "2278"]
[BlackElo "2239"]
[Annotator "NA"]
[PlyCount "82"]
[EventDate "2020.12.07"]
[EventType "tourn"]
[EventCountry "SRB"]
[SourceTitle "playchess.com"]
[Source "ChessBase"]
[SourceQuality "1"]
[TimeControl "40/5400+30:1800+30"]

1. e4 {[%emt 0:00:00]} c5 {[%emt 0:00:03]} 2. Nf3 {[%emt 0:00:00]} g6 {[%emt 0:08:13]} 3. d4 {[%emt 0:01:17]} Bg7 {[%emt 0:01:41]} 4. c4 {[%emt 0:07:57]} d6 {[%emt 0:03:48]} 5. Nc3 {[%emt 0:06:54]} Nc6 {[%emt 0:08:12]} 6. dxc5 {[%emt 0:18:54]} dxc5 {[%emt 0:17:17]} 7. Qxd8+ {[%emt 0:00:30]} Nxd8 {[%emt 0:01:20]} 8. Nd5 {[%emt 0:15:07]} Ne6 {[%emt 0:03:14]} 9. Ng5 {[%emt 0:08:05]} Be5 {[%emt 0:03:20]} 10. f4 {[%emt 0:02:50]} Bb8 {[%emt 0:03:40]} 11. Nf3 {[%emt 0:07:01]} Nf6 {[%emt 0:05:27]} 12. e5 {[%emt 0:02:02]} Nxd5 {[%emt 0:02:04]} 13. cxd5 {[%emt 0:00:07]} Nc7 {[%emt 0:03:09]} 14. Bc4 {[%emt 0:10:20]} b5 {[%emt 0:03:06]} 15. Be2 {[%emt 0:00:23]} Bd7 {[%emt 0:03:44]} 16. d6 {[%emt 0:06:45]} exd6 {[%emt 0:02:48]} 17. exd6 {[%emt 0:00:09]} Ne6 {[%emt 0:00:57]} 18. f5 {[%emt 0:03:08]} gxf5 {[%emt 0:01:02]} 19. O-O {[%emt 0:06:04]} Bxd6 {[%emt 0:01:33]} 20. Be3 {[%emt 0:01:07]} Rg8 {[%emt 0:06:10]} 21. Nh4 {[%emt 0:01:05]} f4 {[%emt 0:01:44]} 22. Bf3 {[%emt 0:00:36]} Rb8 {[%emt 0:01:02]} 23. Bf2 {[%emt 0:00:27]} Ng5 {[%emt 0:04:39]} 24. Rfe1+ {[%emt 0:00:10]} Kd8 {[%emt 0:00:18]} 25. Rad1 {[%emt 0:00:35]} Kc7 {[%emt 0:00:34]} 26. Kf1 {[%emt 0:00:47]} Nxf3 {[%emt 0:01:05]} 27. Nxf3 {[%emt 0:00:10]} Be6 {[%emt 0:01:16]} 28. b3 {[%emt 0:00:31]} a5 {[%emt 0:02:05]} 29. Rc1 {[%emt 0:00:34]} c4 {[%emt 0:00:44]} 30. Nd2 {[%emt 0:00:43]} Ba3 {[%emt 0:03:10]} 31. Rc2 {[%emt 0:00:37]} Bf5 {[%emt 0:00:42]} 32. Ne4 {[%emt 0:00:20]} Rge8 {[%emt 0:01:21]} 33. Rce2 {[%emt 0:00:20]} Bb4 {[%emt 0:00:21]} 34. Nf6 {[%emt 0:00:21]} Rxe2 {[%emt 0:03:20]} 35. Rxe2 {[%emt 0:00:34]} Bd3 {[%emt 0:00:06]} 36. Nd5+ {[%emt 0:00:12]} Kb7 {[%emt 0:00:32]} 37. Nxf4 {[%emt 0:00:24]} Bxe2+ {[%emt 0:00:09]} 38. Nxe2 {[%emt 0:00:30]} Rc8 {[%emt 0:00:52]} 39. Nd4 {[%emt 0:00:22]} cxb3 {[%emt 0:01:00]} 40. axb3 {[%emt 0:00:17]} a4 {[%emt 0:00:21]} 41. Nxb5 {[%emt 0:30:44]} axb3 {[%emt 0:30:12]} 0-1

[Event "14th SRB-ch Women 2020"]
[Site "Vrnjacka Banja"]
[Date "2020.12.08"]
[Round "2.3"]
[White "Eric, Jovana"]
[Black "Srdanovic, Jovana"]
[Result "1-0"]
[ECO "B40"]
[WhiteElo "2278"]
[BlackElo "2149"]
[Annotator "NA"]
[PlyCount "63"]
[EventDate "2020.12.07"]
[EventType "tourn"]
[EventCountry "SRB"]
[SourceTitle "playchess.com"]
[Source "ChessBase"]
[SourceQuality "1"]
[TimeControl "40/5400+30:1800+30"]

1. e4 {[%emt 0:00:00]} c5 {[%emt 0:00:00]} 2. Nf3 {[%emt 0:00:00]} a6 {[%emt 0:00:00]} 3. Nc3 {[%emt 0:00:18]} b5 {[%emt 0:00:00]} 4. g3 {[%emt 0:02:08]} Bb7 {[%emt 0:00:00]} 5. d3 {[%emt 0:01:19]} e6 {[%emt 0:00:42]} 6. Bg2 {[%emt 0:00:16]} d6 {[%emt 0:00:36]} 7. O-O {[%emt 0:00:20]} Nf6 {[%emt 0:00:24]} 8. Nh4 {[%emt 0:07:54]} Nc6 {[%emt 0:07:14]} 9. f4 {[%emt 0:01:45]} b4 {[%emt 0:05:26]} 10. Ne2 {[%emt 0:02:04]} Qc7 {[%emt 0:04:32]} 11. c3 {[%emt 0:06:05]} bxc3 {[%emt 0:16:45]} 12. bxc3 {[%emt 0:00:15]} Na5 {[%emt 0:03:12]} 13. f5 {[%emt 0:14:00]} e5 {[%emt 0:03:32]} 14. c4 {[%emt 0:00:41]} Be7 {[%emt 0:01:40]} 15. Nc3 {[%emt 0:00:29]} Nc6 {[%emt 0:01:43]} 16. Nd5 {[%emt 0:12:05]} Nxd5 {[%emt 0:02:07]} 17. exd5 {[%emt 0:00:06]} Nd4 {[%emt 0:01:05]} 18. Qg4 {[%emt 0:04:18]} Bf6 {[%emt 0:00:27]} 19. Rb1 {[%emt 0:02:05]} Bc8 {[%emt 0:05:03]} 20. Be4 {[%emt 0:06:41]} Bd7 {[%emt 0:05:59]} 21. Be3 {[%emt 0:02:55]} Rb8 {[%emt 0:02:47]} 22. Qh5 {[%emt 0:08:56]} Rxb1 {[%emt 0:02:41]} 23. Rxb1 {[%emt 0:00:05]} h6 {[%emt 0:00:54]} 24. Ng2 {[%emt 0:03:32]} Ke7 {[%emt 0:00:26]} 25. Rf1 {[%emt 0:02:59]} Rb8 {[%emt 0:01:07]} 26. h4 {[%emt 0:00:10]} Rb2 {[%emt 0:01:36]} 27. Kh2 {[%emt 0:02:28]} Kd8 {[%emt 0:18:17]} 28. g4 {[%emt 0:01:50]} Nc2 {[%emt 0:09:26]} 29. Bc1 {[%emt 0:00:34]} Rb1 {[%emt 0:00:07]} 30. g5 {[%emt 0:01:27]} hxg5 {[%emt 0:00:38]} 31. hxg5 {[%emt 0:00:05]} Be7 {[%emt 0:00:03]} 32. f6 {[%emt 0:01:48]} 1-0

[Event "14th SRB-ch Women 2020"]
[Site "Vrnjacka Banja"]
[Date "2020.12.08"]
[Round "2.5"]
[White "Drljevic, Ljilja"]
[Black "Benderac, Ana"]
[Result "1-0"]
[ECO "C25"]
[WhiteElo "2174"]
[BlackElo "2202"]
[Annotator "NA"]
[PlyCount "76"]
[EventDate "2020.12.07"]
[EventType "tourn"]
[EventCountry "SRB"]
[SourceTitle "playchess.com"]
[Source "ChessBase"]
[SourceQuality "1"]
[TimeControl "40/5400+30:1800+30"]

1. e4 {[%emt 0:00:00]} Nc6 {[%emt 0:00:00]} 2. Nc3 {[%emt 0:01:04]} e5 {[%emt 0:00:12]} 3. g3 {[%emt 0:00:57]} Bc5 {[%emt 0:01:55]} 4. Bg2 {[%emt 0:00:04]} d6 {[%emt 0:00:24]} 5. d3 {[%emt 0:03:27]} f5 {[%emt 0:11:02]} 6. Nh3 {[%emt 0:11:45]} Nf6 {[%emt 0:04:22]} 7. Na4 {[%emt 0:08:55]} fxe4 {[%emt 0:18:39]} 8. dxe4 {[%emt 0:03:54]} O-O {[%emt 0:09:46]} 9. O-O {[%emt 0:14:16]} Bg4 {[%emt 0:03:17]} 10. Qd3 {[%emt 0:05:10]} Nd4 {[%emt 0:01:35]} 11. Qc4+ {[%emt 0:24:46]} Be6 {[%emt 0:03:50]} 12. Qd3 {[%emt 0:00:02]} b5 {[%emt 0:06:36]} 13. Nxc5 {[%emt 0:04:55]} Bc4 {[%emt 0:04:03]} 14. Qd1 {[%emt 0:06:36]} Bxf1 {[%emt 0:01:22]} 15. Bxf1 {[%emt 0:01:46]} dxc5 {[%emt 0:00:14]} 16. c3 {[%emt 0:00:45]} Ne6 {[%emt 0:03:33]} 17. Qb3 {[%emt 0:00:14]} Qd6 {[%emt 0:04:12]} 18. Qxb5 {[%emt 0:03:35]} Kh8 {[%emt 0:02:02]} 19. f3 {[%emt 0:02:47]} c6 {[%emt 0:03:43]} 20. Qe2 {[%emt 0:00:18]} Nd7 {[%emt 0:02:07]} 21. Be3 {[%emt 0:00:43]} Nb6 {[%emt 0:00:45]} 22. Rd1 {[%emt 0:00:39]} Qe7 {[%emt 0:00:15]} 23. f4 {[%emt 0:01:13]} exf4 {[%emt 0:01:29]} 24. gxf4 {[%emt 0:00:11]} Rad8 {[%emt 0:05:44]} 25. Re1 {[%emt 0:00:28]} Rb8 {[%emt 0:05:08]} 26. f5 {[%emt 0:01:16]} Nc7 {[%emt 0:00:09]} 27. Bg5 {[%emt 0:01:00]} Qf7 {[%emt 0:00:20]} 28. Bf4 {[%emt 0:00:18]} h6 {[%emt 0:00:53]} 29. Bd6 {[%emt 0:01:49]} Rfd8 {[%emt 0:00:23]} 30. Bxc5 {[%emt 0:00:24]} Na4 {[%emt 0:00:17]} 31. Bd4 {[%emt 0:00:48]} c5 {[%emt 0:01:51]} 32. Be5 {[%emt 0:00:29]} Re8 {[%emt 0:00:50]} 33. Nf4 {[%emt 0:00:20]} Rxb2 {[%emt 0:00:34]} 34. Qg4 {[%emt 0:00:50]} Rb6 {[%emt 0:02:45]} 35. Ng6+ {[%emt 0:00:50]} Kh7 {[%emt 0:00:40]} 36. Bc4 {[%emt 0:00:35]} Ne6 {[%emt 0:01:20]} 37. Nf4 {[%emt 0:00:21]} Nb2 {[%emt 0:01:13]} 38. fxe6 {[%emt 0:00:19]} Qb7 {[%emt 0:01:30]} 1-0

[Event "14th SRB-ch Women 2020"]
[Site "Vrnjacka Banja"]
[Date "2020.12.08"]
[Round "3.2"]
[White "Prudnikova, Svetlana"]
[Black "Drljevic, Ljilja"]
[Result "1/2-1/2"]
[ECO "E92"]
[WhiteElo "2181"]
[BlackElo "2174"]
[Annotator "NA"]
[PlyCount "31"]
[EventDate "2020.12.07"]
[EventType "tourn"]
[EventCountry "SRB"]
[SourceTitle "playchess.com"]
[Source "ChessBase"]
[SourceQuality "1"]
[TimeControl "40/5400+30:1800+30"]

1. Nf3 {[%emt 0:02:01]} Nf6 {[%emt 0:00:00]} 2. c4 {[%emt 0:00:08]} g6 {[%emt 0:00:00]} 3. Nc3 {[%emt 0:00:14]} Bg7 {[%emt 0:00:00]} 4. e4 {[%emt 0:00:06]} d6 {[%emt 0:00:05]} 5. d4 {[%emt 0:00:06]} O-O {[%emt 0:00:09]} 6. Be2 {[%emt 0:00:06]} e5 {[%emt 0:00:06]} 7. d5 {[%emt 0:00:45]} a5 {[%emt 0:00:25]} 8. Bg5 {[%emt 0:01:52]} h6 {[%emt 0:00:03]} 9. Bh4 {[%emt 0:00:13]} g5 {[%emt 0:00:42]} 10. Bg3 {[%emt 0:00:12]} Nh5 {[%emt 0:00:05]} 11. h4 {[%emt 0:08:01]} Nxg3 {[%emt 0:00:43]} 12. fxg3 {[%emt 0:00:01]} g4 {[%emt 0:00:07]} 13. Nd2 {[%emt 0:01:13]} h5 {[%emt 0:00:03]} 14. Bd3 {[%emt 0:00:56]} c6 {[%emt 0:07:39]} 15. Qe2 {[%emt 0:03:39]} Bh6 {[%emt 0:18:47]} 16. O-O-O {[%emt 0:05:48]} 1/2-1/2

[Event "14th SRB-ch Women 2020"]
[Site "Vrnjacka Banja"]
[Date "2020.12.08"]
[Round "3.3"]
[White "Srdanovic, Jovana"]
[Black "Chelushkina, Irina"]
[Result "1-0"]
[ECO "D32"]
[WhiteElo "2149"]
[BlackElo "2224"]
[Annotator "ChessBase"]
[PlyCount "53"]
[EventDate "2020.12.07"]
[EventType "tourn"]
[EventCountry "SRB"]
[SourceTitle "playchess.com"]
[Source "ChessBase"]
[SourceQuality "1"]
[TimeControl "40/5400+30:1800+30"]

1. d4 {[%emt 0:00:00]} e6 {[%emt 0:00:00]} 2. c4 {[%emt 0:00:00]} Nf6 {[%emt 0:00:37]} 3. Nc3 {[%emt 0:00:00]} d5 {[%emt 0:00:37]} 4. Nf3 {[%emt 0:00:15]} c5 {[%emt 0:00:43]} 5. cxd5 {[%emt 0:00:13]} exd5 {[%emt 0:00:05]} 6. Bg5 {[%emt 0:04:45]} Nc6 {[%emt 0:10:35]} 7. e3 {[%emt 0:11:36]} c4 {[%emt 0:08:45]} 8. Be2 {[%emt 0:03:16]} Be7 {[%emt 0:03:13]} 9. O-O {[%emt 0:00:16]} O-O {[%emt 0:01:43]} 10. b3 {[%emt 0:00:17]} Qa5 {[%emt 0:05:47]} 11. Bxf6 {[%emt 0:04:42]} gxf6 {[%emt 0:03:45]} 12. Qc2 {[%emt 0:02:00]} Kh8 {[%emt 0:09:52]} 13. bxc4 {[%emt 0:03:27]} dxc4 {[%emt 0:02:50]} 14. d5 {[%emt 0:09:30]} Nb4 {[%emt 0:00:43]} 15. Qe4 {[%emt 0:00:18]} Qd8 {[%emt 0:03:37]} 16. Qxc4 {[%emt 0:02:21]} Rg8 {[%emt 0:01:55]} 17. g3 {[%emt 0:01:20]} Bg4 {[%emt 0:05:29]} 18. Rac1 {[%emt 0:02:44]} Rc8 {[%emt 0:01:32]} 19. Qe4 {[%emt 0:03:31]} a5 {[%emt 0:04:23]} 20. Nd4 {[%emt 0:01:36]} Bh3 {[%emt 0:06:11]} 21. Rfd1 {[%emt 0:00:55]} Bd6 {[%emt 0:01:23]} 22. a3 {[%emt 0:01:31]} Na6 {[%emt 0:00:40]} 23. Ncb5 {[%emt 0:04:01]} Rxc1 {[%emt 0:05:48]} 24. Rxc1 {[%emt 0:00:06]} Bf8 {[%emt 0:08:02]} 25. Bd3 {[%emt 0:03:10]} Rg6 {[%emt 0:01:04]} 26. d6 {[%emt 0:02:59]} Qd7 {[%emt 0:03:09]} 27. Nf5 {[%emt 0:01:58]} 1-0